Cogmind - Beta 17.1 @@@ ROGUE MODE // 2026.09.21 @ 17:54:19 Player: Kite Result: Self-destructed Performance ------------- Evolutions (7) 3500 Regions Visited (10) 2000 Robots Destroyed (87) 435 Value Destroyed (2142) 2142 Prototype IDs (11) 220 Alien Tech Used (0) 0 Bonus (12600) 12600 TOTAL SCORE: 20897 Bonus ------- High Alert Combat Kills 83 Follower Combat Kills 1117 Prayed to X0-1V1 5000 Major X0-1V1 Interference 5100 Entered DSFs 500 Registered with UFD 300 Met Optimus in HQ 500 Cogmind --------- Core Integrity 1328/1375 Matter 700/700 Energy 45/1400 System Corruption 6% Temperature Cool (0) Movement Walking (120) Location -3/Research Parts ------- > --- POWER (3) -------- (None) > --- PROPULSION (6) --- Biometal Medium Treads Thunder Leg > --- UTILITY (7) ------ Hacking Suite X0-1V1's Piety Tracker > --- WEAPON (5) ------- HERF Cannon > --- INVENTORY (5) ---- High-capacity Storage Unit Huge Storage Unit Advanced Transmission Jammer HERF Cannon Peak State ------------ > --- POWER ------------ Angular Momentum Engine > --- PROPULSION ------- Overtuned Scrapsphere Overtuned Scrapsphere Overtuned Scrapsphere > --- UTILITY ---------- Scrap Suit Huge Storage Unit Scrapoid Pod X0-1V1's Piety Tracker > --- WEAPON ----------- Chainsword Chainsword > --- INVENTORY -------- Micro Nuclear Core Scrap Suit Scrap Suit Energy Well Improved Sensor Array Improved Signal Interpreter Improved Terrain Scan Processor Improved Actuator Array Improved Light Armor Plating System Shield Drone Bay Remote Datajack CPS Tube CPS Tube CPS Tube CPS Tube Powered Hammer Makeshift Hammer Chainsword Chainsword Chainsword Large Botcube [Rating: 67] Favorites ----------- Power Fission Core Engine Light Ion Engine Power Core Fission Core Reactor Antimatter Reactor Propulsion Light Treads Treads Light Treads Leg Improved Aluminum Leg Wheel Compact Wheel Utility Huge Storage Unit Device X0-1V1's Piety Tracker Storage Huge Storage Unit Processor Improved Terrain Scan Processor Hackware System Shield Protection Medium Armor Plating Weapon Light Cannon Energy Gun Small Laser Energy Cannon HERF Cannon Ballistic Cannon Light Cannon Launcher Rocket Launcher Impact Weapon Powered Hammer Slashing Weapon Chainsword Piercing Weapon Spear Special Melee Weapon Improved Datajack Build | -11 -10 -10 -9 -6 -6 -6 -5 -5 -4 -3 ------- Run | Yrd Mat Sub Scr Fac Was Fac Fac DSF Fac Res Slots Evolved 14 | . . . . 8 . . 2 . 2 2 Power 2 | . . . . . . . . . 1 1 Propulsion 4 | . . . . 4 . . . . . . Utility 5 | . . . . 4 . . . . 1 . Weapon 3 | . . . . . . . 2 . . 1 Parts Attached 116 | 6 11 5 8 4 1 56 6 5 5 9 Power 9 | 1 1 1 1 . . 4 . . 1 . Engine 5 | 1 1 . . . . 3 . . . . Core 3 | . . 1 1 . . 1 . . . . Reactor 1 | . . . . . . . . . 1 . Propulsion 40 | 2 . 2 3 . . 30 1 . . 2 Treads 7 | 2 . . 2 . . 2 . . . 1 Leg 3 | . . 2 . . . . . . . 1 Wheel 30 | . . . 1 . . 28 1 . . . Hover . | . . . . . . . . . . . Flight . | . . . . . . . . . . . Utility 45 | 1 5 2 2 2 1 17 2 3 4 6 Device 20 | . 1 . 1 1 . 11 2 . 2 2 Storage 5 | 1 2 . . . . . . 1 1 . Processor 6 | . . . . . 1 5 . . . . Hackware 4 | . . . . . . . . 2 1 1 Protection 10 | . 2 2 1 1 . 1 . . . 3 Artifact . | . . . . . . . . . . . Weapon 22 | 2 5 . 2 2 . 5 3 2 . 1 Energy Gun 3 | 2 1 . . . . . . . . . Energy Cannon 1 | . . . . . . . . . . 1 Ballistic Gun . | . . . . . . . . . . . Ballistic Cannon 4 | . 2 . . . . . . 2 . . Launcher 3 | . 2 . . . . 1 . . . . Special Weapon . | . . . . . . . . . . . Impact Weapon 2 | . . . . . . 2 . . . . Slashing Weapon 7 | . . . 1 1 . 2 3 . . . Piercing Weapon 1 | . . . 1 . . . . . . . Special Melee Weapon 1 | . . . . 1 . . . . . . Unidentified Prototypes 5 | . 1 . . 1 1 1 . 1 . . Parts Lost 51 | . 1 1 . 1 1 29 . 14 3 1 Power 4 | . 1 . . . . 2 . 1 . . Propulsion 26 | . . 1 . . . 18 . 7 . . Utility 16 | . . . . 1 1 7 . 3 3 1 Weapon 5 | . . . . . . 2 . 3 . . Highest Loss Streak 11 | . 1 1 . 1 1 9 . 11 2 1 To Critical Strikes . | . . . . . . . . . . . Average Backups 15 | 4 12 14 17 15 16 19 16 12 3 4 Power 1 | . . 2 2 . 1 1 1 . . . Propulsion 2 | 1 2 2 2 . . . 1 . . . Utility 5 | . 6 5 4 7 7 8 7 7 2 3 Weapon 4 | 2 2 4 5 2 2 4 2 1 . 1 Tool/Special . | . . . . . . . . . . . Unused Backups 59 | . 9 4 13 . . 11 . 18 1 3 Power 13 | . 1 2 5 . . 3 . 1 1 . Propulsion 6 | . 3 . 3 . . . . . . . Utility 23 | . 2 2 . . . 6 . 11 . 2 Weapon 12 | . 3 . 5 . . 2 . 1 . 1 Tool/Special 5 | . . . . . . . . 5 . . Average Slot Usage (%) 86 | . 96 99 99 64 48 74 89 39 6 20 Engine 4 | . 11 6 . . . 4 . . . . Core 5 | . . 7 14 6 2 . 5 2 . . Treads 12 | . 28 12 12 12 8 1 . . . 2 Leg 6 | . . 15 13 . . . . . . 3 Wheel 6 | . . . 1 6 6 26 35 10 . . Device 6 | . . . 7 13 13 15 14 6 2 2 Storage 11 | . 14 14 14 6 6 6 5 2 . . Processor 1 | . . . . . . 6 6 1 . . Protection 7 | . 13 14 6 4 2 . . . . 3 Energy Gun 2 | . 8 . . . . . . . . . Ballistic Cannon 11 | . 19 27 10 . . . . 2 . . Slashing Weapon 4 | . . . 8 5 6 7 18 9 . . Piercing Weapon 2 | . . . 8 6 . . . . . . Peak Build Rating 67 | 6 21 14 42 53 61 67 66 67 18 48 Average Rating 27 | 3 9 12 28 52 46 55 64 32 11 36 On Entrance 26 | . 6 10 14 42 53 41 53 66 . 2 Avg Prop Armor Cover (%) 13 | . . . 19 15 11 7 . . . 9 Naked Turns 108 | . . . . . . . . 68 32 8 Heaviest Build 125 | 12 97 38 95 105 105 112 124 125 1 45 Greatest Support 84 | 40 40 40 50 16 16 84 58 58 3 23 Greatest Overweight (x) 28 | . 2 1 5 6 6 28 2 7 . 1 Average Overweight (x) 1 | . . . 1 6 5 2 2 1 . . Largest Inventory Capacity 25 | 8 25 15 25 25 25 25 25 25 20 5 Average Capacity 19 | 7 18 15 20 25 25 25 25 16 5 5 Most Carried 25 | 6 15 15 25 24 22 25 24 25 5 5 Average Carried 17 | 4 12 14 19 22 22 24 20 15 3 4 Final Capacity 25 | 8 15 15 25 25 25 25 25 5 5 5 Final Carried 25 | 4 15 15 25 22 22 25 22 3 5 4 Scrap Suit Usage (%) 13 | . . . . 100 100 48 100 6 . . Parts Cannibalized 13 | . . . . . . 12 . 1 . . Class Distribution -------------------- 80% | Mutant 5% | Scavenger-Gladiator 4% | Scavenger-Mutant 4% | Scavenger-Scrapper Dominant Class ---------------- Mutant | -10/Materials Mutant | -10/Subcaves Mutant | -9/Scraptown Mutant | -6/Factory Mutant | -6/Waste Scavenger-Gladiator | -6/Factory Scavenger-Scrapper | -5/Factory Mutant | -5/DSF Mutant | -4/Factory Mutant | -3/Research Resources | -11 -10 -10 -9 -6 -6 -6 -5 -5 -4 -3 ----------- Run | Yrd Mat Sub Scr Fac Was Fac Fac DSF Fac Res Matter Collected 3847 | 205 833 298 41 . . 1964 . 171 240 95 Remotely . | . . . . . . . . . . . Salvage Created 3205 | . 932 160 . . . 1958 . 50 . 105 Parts 174 | . 79 8 . . . 82 . . . 5 Haulers Intercepted 2 | . 2 . . . . . . . . . Recyclers Shooed 3 | . 3 . . . . . . . . . Parts Field Recycled . | . . . . . . . . . . . Retrieved Matter . | . . . . . . . . . . . Parts Self-Destructed 8 | . . 8 . . . . . . . . Prevented . | . . . . . . . . . . . Parts Restored . | . . . . . . . . . . . Kills | -11 -10 -10 -9 -6 -6 -6 -5 -5 -4 -3 ------- Run | Yrd Mat Sub Scr Fac Was Fac Fac DSF Fac Res Combat Hostiles Destroyed 42 | . 15 7 . . . 18 . 1 . 1 Melee 10 | . . . . . . 10 . . . . Guns 3 | . 3 . . . . . . . . . Cannons 10 | . 5 4 . . . . . 1 . . AOE 13 | . 7 3 . . . 3 . . . . Classes Destroyed 16 | . 10 1 . . . 4 . 1 . . Worker 10 | . 4 . . . . 6 . . . . Builder 9 | . 4 . . . . 5 . . . . Tunneler 5 | . 4 . . . . 1 . . . . Hauler 2 | . 2 . . . . . . . . . Recycler 12 | . 6 . . . . 6 . . . . Mechanic 2 | . 1 . . . . 1 . . . . Operator 2 | . 1 . . . . 1 . . . . Watcher 3 | . 3 . . . . . . . . . Swarmer 9 | . 6 . . . . 3 . . . . Grunt 17 | . 9 1 . . . 7 . . . . Brawler 1 | . . . . . . 1 . . . . Sentry 3 | . . . . . . 2 . . . 1 Hunter 2 | . . . . . . 2 . . . . Programmer 3 | . . . . . . 3 . . . . Heavy 1 | . . . . . . . . 1 . . Subdweller 6 | . . 6 . . . . . . . . Best Kill Streak 11 | . 11 2 . . . 6 . 1 . 1 Combat Bots Only 6 | . 6 2 . . . 4 . 1 . 1 Max Kills in Single Turn 3 | . 3 1 . . . 3 . 1 . 1 Gunslinging . | . . . . . . . . . . . Exploded 3 | . 2 1 . . . 3 . . . . Melee 1 | . . . . . . 1 . . . . Uniques/NPCs Destroyed . | . . . . . . . . . . . Combat | -11 -10 -10 -9 -6 -6 -6 -5 -5 -4 -3 -------- Run | Yrd Mat Sub Scr Fac Was Fac Fac DSF Fac Res Hostile Shots Fired 654 | . 52 25 . 2 2 374 . 68 86 45 Missed 202 | . 12 7 . 1 . 100 . 18 47 17 Hits 452 | . 40 18 . 1 2 274 . 50 39 28 Melee 2 | . . . . . 2 . . . . . Projectile 450 | . 40 18 . 1 . 274 . 50 39 28 AOE 1 | . . . . . . 1 . . . . Critical Strikes 10 | . 1 . . . 1 4 . 1 1 2 Part Disruptions 1 | . . . . . . 1 . . . . Damage Taken 9088 | . 533 545 . 18 89 4612 . 1966 671 654 Core 2226 | . 79 98 . . . 798 . 593 611 47 Absorbed by Shields 81 | . . . . . . 81 . . . . Regen/Repaired (Parts) 96 | . . . . . . 86 . 10 . . Core Remaining (%) 53 | 100 . . 41 . . 34 . 44 50 . Volleys Fired 129 | 2 72 20 . . . 1 . 13 . 21 Largest 2 | 2 2 2 . . . 1 . 1 . 1 Hottest 88 | 80 80 60 . . . 33 . 51 . 88 Shots Fired 193 | 4 125 29 . . . 1 . 13 . 21 Gun 52 | 4 48 . . . . . . . . . Cannon 116 | . 64 18 . . . . . 13 . 21 Launcher 25 | . 13 11 . . . 1 . . . . Special . | . . . . . . . . . . . Kinetic 95 | . 64 18 . . . . . 13 . . Thermal 52 | 4 48 . . . . . . . . . Explosive 25 | . 13 11 . . . 1 . . . . Electromagnetic 21 | . . . . . . . . . . 21 Robot Hit Streak 19 | 1 8 11 . . . . . 13 . 19 Robot Miss Streak 5 | 2 5 3 . . . 1 . . . 2 Penetration Max . | . . . . . . . . . . . Secondary Targets 1 | . 1 . . . . . . . . . Max Gunslinging Chain 1 | . 1 . . . . . . . . . Shots Hit Robots 197 | 1 68 20 . 1 . 80 . 13 . 14 Core Hits 100 | . 47 12 . . . 30 . 5 . 6 Critical Kills 2 | . . . . . . 2 . . . . Critical Parts Destroyed 6 | . . . . . . 6 . . . . Critical Strikes 16 | . 3 1 . . . 11 . . . 1 Blast 4 | . 3 1 . . . . . . . . Corrupt 1 | . . . . . . . . . . 1 Smash 8 | . . . . . . 8 . . . . Sever 3 | . . . . . . 3 . . . . Melee Attacks 130 | . . . . 1 17 111 1 . . . Impact 53 | . . . . . . 53 . . . . Slashing 76 | . . . . . 17 58 1 . . . Piercing . | . . . . . . . . . . . Sneak Attacks 23 | . . . . 1 . 22 . . . . Combat Hostiles 1 | . . . . . . 1 . . . . Follow-up Attacks 15 | . . . . . . 15 . . . . Damage Inflicted 7785 | 21 1955 933 . . . 4163 . 493 9 211 Guns 343 | 21 322 . . . . . . . . . Cannons 1562 | . 644 226 . . . . . 493 . 199 Explosions 1730 | . 901 707 . . . 122 . . . . Melee 4041 | . . . . . . 4041 . . . . Ramming 109 | . 88 . . . . . . . 9 12 Kinetic 1363 | . 644 226 . . . . . 493 . . Thermal 343 | 21 322 . . . . . . . . . Explosive 1730 | . 901 707 . . . 122 . . . . Electromagnetic 199 | . . . . . . . . . . 199 Impact 1680 | . . . . . . 1680 . . . . Slashing 2361 | . . . . . . 2361 . . . . Piercing . | . . . . . . . . . . . Highest Corruption 40 | . . . . . 20 40 . 4 3 6 Average Corruption 18 | . . . . . 10 21 . 1 2 3 Corruption Purged . | . . . . . . . . . . . Corruption Blocked . | . . . . . . . . . . . Effects 101 | . . . . . 8 89 . 1 1 2 Message Errors 32 | . . . . . 2 29 . . 1 . Matter Fused 27 | . . . . . 2 23 . . . 2 Heat Flow Errors 14 | . . . . . 1 13 . . . . Energy Discharges 11 | . . . . . 2 9 . . . . Parts Rejected 1 | . . . . . . 1 . . . . Parts Fused 1 | . . . . . . 1 . . . . Data Loss (minor) 5 | . . . . . . 4 . 1 . . Data Loss (major) 1 | . . . . . 1 . . . . . Alerts 2 | . . . . . . 2 . . . . Misdirections 7 | . . . . . . 7 . . . . Overload Shots . | . . . . . . . . . . . Overflow Damage 987 | . 36 . . . . 951 . . . . Projectiles 4 | . 4 . . . . . . . . . Explosions 47 | . 32 . . . . 15 . . . . Melee 936 | . . . . . . 936 . . . . Knockbacks 12 | . 5 . . . . 7 . . . . Impact 7 | . . . . . . 7 . . . . Kinetic 5 | . 5 . . . . . . . . . Secondary . | . . . . . . . . . . . Self-Inflicted Damage 161 | . 104 27 . . . 26 . . 4 . Shots 6 | . 4 1 . . . 1 . . . . Rammed 24 | . 20 . . . . . . . 4 . Targets Rammed 36 | . 22 . . . . . . . 4 10 Kicked 10 | . . . . . . . . . . 10 Crushed 2 | . 2 . . . . . . . . . Highest Temperature 385 | 36 321 . . . 128 385 . . . 110 Average Temperature 73 | 21 60 . . . 85 118 . . . 66 Received Heat Transfer 1576 | . 186 72 . 9 . 1273 . . 27 9 Effects 1 | . 1 . . . . . . . . . Interference 1 | . 1 . . . . . . . . . Siege Activations . | . . . . . . . . . . . Martial Activations . | . . . . . . . . . . . Shielding Activations . | . . . . . . . . . . . Robots Disrupted . | . . . . . . . . . . . Combat Hostiles . | . . . . . . . . . . . Robots Corrupted 9 | . . . . . . 8 . . . 1 Combat Hostiles 6 | . . . . . . 5 . . . 1 Parts Fried 14 | . . . . . . 12 . . . 2 Impact Corruptions 19 | . . . . . . 19 . . . . Robots Melted . | . . . . . . . . . . . Combat Hostiles . | . . . . . . . . . . . Parts Melted 2 | . 1 1 . . . . . . . . Heat Transferred 775 | 50 725 . . . . . . . . . Parts Sabotaged . | . . . . . . . . . . . Parts Stolen . | . . . . . . . . . . . Parts Stripped . | . . . . . . . . . . . Power Chain Reactions . | . . . . . . . . . . . Alert | -11 -10 -10 -9 -6 -6 -6 -5 -5 -4 -3 ------- Run | Yrd Mat Sub Scr Fac Was Fac Fac DSF Fac Res Maximum Alert Level 2 | . 1 . . . . 2 1 1 . . Low Security (%) 70 | 100 83 . . 100 100 37 . 93 100 100 Level 1 12 | . 16 . . . . 13 100 6 . . Level 2 17 | . . . . . . 49 . . . . Level 3 . | . . . . . . . . . . . Level 4 . | . . . . . . . . . . . Level 5 . | . . . . . . . . . . . High Security . | . . . . . . . . . . . Max Security . | . . . . . . . . . . . Sterilizations 1 | . . . . . . . . 1 . . Peak Influence 648 | . 274 . . . 1 648 287 204 55 30 Initial 282 | . . . . . . . 282 204 44 28 Average 169 | . 108 . . . . 328 282 118 11 12 Influence Increases 2641 | . 660 30 . . 5 1771 20 20 105 30 Destroy 0b10 Robot/C 1400 | . 300 20 . . . 1040 . 20 . 20 Destroy 0b10 Robot/NC 235 | . 125 . . . . 110 . . . . Destroy Leader 322 | . 80 10 . . . 222 . . . 10 Allied During Kill 240 | . . . . . . 240 . . . . Successful Hack 7 | . . . . . . 2 5 . . . Select Force Hacks 30 | . 30 . . . . . . . . . Disable Machine 105 | . 45 . . . . 45 15 . . . Destroy Structure 92 | . 65 . . . 5 22 . . . . Partial Spotted 60 | . . . . . . 15 . . 45 . Lose Combat Pursuer 150 | . 15 . . . . 75 . . 60 . Influence Decreases 2641 | . 557 133 . . 5 1194 305 228 134 85 Entered New Map 501 | . . 51 . . . . 295 88 40 27 Time Decay 1279 | . 547 82 . . 4 504 10 . 84 48 Lost Part 461 | . 10 . . . 1 290 . 140 10 10 Lost Ally 400 | . . . . . . 400 . . . . Squads Dispatched 27 | . 2 . . . . 21 . 1 1 2 Investigation 7 | . 1 . . . . 4 . . . 2 Extermination 4 | . . . . . . 3 . . 1 . Reinforcement 9 | . 1 . . . . 7 . 1 . . Assault 1 | . . . . . . 1 . . . . Garrison 6 | . . . . . . 6 . . . . Intercept . | . . . . . . . . . . . Searches Triggered . | . . . . . . . . . . . Construction Impeded 2 | . . . . . . 2 . . . . Haulers Reinforced 1 | . . . . . . 1 . . . . Active Scanning Responses . | . . . . . . . . . . . Cargo Convoy Interrupts 1 | . . . . . . 1 . . . . Stealth | -11 -10 -10 -9 -6 -6 -6 -5 -5 -4 -3 --------- Run | Yrd Mat Sub Scr Fac Was Fac Fac DSF Fac Res Distress Signals 8 | . 3 . . 1 . 4 . . . . Communications Jammed . | . . . . . . . . . . . Distress Signals . | . . . . . . . . . . . Times Spotted 139 | . 26 8 . 5 3 73 . 3 17 4 Peak Tracking Total 15 | . 4 2 . 5 4 11 . 1 15 5 Tactical Retreats 10 | . 1 . . . 2 4 . . 3 . Traps | -11 -10 -10 -9 -6 -6 -6 -5 -5 -4 -3 ------- Run | Yrd Mat Sub Scr Fac Was Fac Fac DSF Fac Res Traps Triggered 6 | . . 3 . 1 . 1 . 1 . . Indirectly . | . . . . . . . . . . . Trap Hack Attempts . | . . . . . . . . . . . Triggered . | . . . . . . . . . . . Disarmed . | . . . . . . . . . . . Reprogrammed . | . . . . . . . . . . . Reused . | . . . . . . . . . . . Traps Extracted . | . . . . . . . . . . . Installed . | . . . . . . . . . . . Triggered . | . . . . . . . . . . . Most Traps Carried 2 | . . . . . . . . 2 2 . Machines | -11 -10 -10 -9 -6 -6 -6 -5 -5 -4 -3 ---------- Run | Yrd Mat Sub Scr Fac Was Fac Fac DSF Fac Res Machines Disabled 10 | . 6 . . . . 3 1 . . . Max in Single Turn 2 | . 2 . . . . 1 1 . . . Machines Repaired . | . . . . . . . . . . . Machines Dismantled . | . . . . . . . . . . . Machines Sabotaged . | . . . . . . . . . . . Overloaded Fab Kills . | . . . . . . . . . . . Hacking | -11 -10 -10 -9 -6 -6 -6 -5 -5 -4 -3 --------- Run | Yrd Mat Sub Scr Fac Was Fac Fac DSF Fac Res Machines Accessed 14 | . 2 . 1 1 . 6 1 . 2 1 Terminals 4 | . . . . 1 . . 1 . 1 1 Fabricators . | . . . . . . . . . . . Repair Stations 1 | . . . . . . . . . 1 . Recycling Units 6 | . 2 . . . . 4 . . . . Scanalyzers 1 | . . . . . . 1 . . . . Garrison Access 1 | . . . . . . 1 . . . . Total Hacks 19 | . 4 . 1 2 . 8 1 . 2 1 Successful 11 | . 2 . 1 . . 6 1 . . 1 Failed 7 | . 2 . . 2 . 1 . . 2 . Catastrophic 2 | . . . . 1 . . . . 1 . Database Lockouts 1 | . . . . . . 1 . . . . Manual 13 | . 2 . . 2 . 6 . . 2 1 Terminals 5 | . . . . 2 . . 1 . 1 1 Fabricators . | . . . . . . . . . . . Repair Stations 1 | . . . . . . . . . 1 . Recycling Units 8 | . 4 . . . . 4 . . . . Scanalyzers 3 | . . . . . . 3 . . . . Garrison Access 1 | . . . . . . 1 . . . . Terminal Hacks 2 | . . . 1 . . . 1 . . . Open DSF 1 | . . . . . . . 1 . . . Proto ID Catalog 1 | . . . 1 . . . . . . . Fabricator Hacks . | . . . . . . . . . . . Repair Station Hacks . | . . . . . . . . . . . Recycling Unit Hacks 1 | . 1 . . . . . . . . . Process 1 | . 1 . . . . . . . . . Scanalyzer 2 | . . . . . . 2 . . . . Retrieve Study 2 | . . . . . . 2 . . . . Garrison Access Hacks . | . . . . . . . . . . . Unauthorized Hacks 6 | . 1 . . . . 4 . . . 1 Terminals 1 | . . . . . . . . . . 1 Search 1 | . . . . . . . . . . 1 Fabricators . | . . . . . . . . . . . Repair Stations . | . . . . . . . . . . . Recycling Units 5 | . 1 . . . . 4 . . . . Tunnel 1 | . 1 . . . . . . . . . Scrapoids 4 | . . . . . . 4 . . . . Scanalyzers . | . . . . . . . . . . . Garrison Access . | . . . . . . . . . . . Data Cores Recovered . | . . . . . . . . . . . Used . | . . . . . . . . . . . Hacking Detections 8 | . 1 . . 1 . 2 1 . 3 . Full Trace Events 1 | . 1 . . . . . . . . . Feedback Events . | . . . . . . . . . . . Feedback Blocked . | . . . . . . . . . . . Robot Schematics Acquired . | . . . . . . . . . . . Robots Built . | . . . . . . . . . . . Authchips . | . . . . . . . . . . . Time . | . . . . . . . . . . . Total Robot Build Rating . | . . . . . . . . . . . Part Schematics Acquired . | . . . . . . . . . . . Parts Built . | . . . . . . . . . . . Authchips . | . . . . . . . . . . . Time . | . . . . . . . . . . . Total Part Build Rating . | . . . . . . . . . . . Part Studies Acquired 2 | . . . . . . 2 . . . . Parts Repaired . | . . . . . . . . . . . Time . | . . . . . . . . . . . Parts Recycled . | . . . . . . . . . . . Recycled Matter 342 | . 342 . . . . . . . . . Retrieved Matter . | . . . . . . . . . . . Retrieved Components . | . . . . . . . . . . . Parts Scanalyzed . | . . . . . . . . . . . Part Schematics Acquired . | . . . . . . . . . . . Parts Damaged . | . . . . . . . . . . . Bothacking | -11 -10 -10 -9 -6 -6 -6 -5 -5 -4 -3 ------------ Run | Yrd Mat Sub Scr Fac Was Fac Fac DSF Fac Res Used RIF Installer . | . . . . . . . . . . . Robots Hacked 1 | . . . . 1 . . . . . . Non-combat 1 | . . . . 1 . . . . . . Combat . | . . . . . . . . . . . Robot Hacks Applied 1 | . . . . 1 . . . . . . find_recycling 1 | . . . . 1 . . . . . . Relay Couplers Released . | . . . . . . . . . . . Fabnet Peak Effective % . | . . . . . . . . . . . Robots Rewired . | . . . . . . . . . . . Allies Hacked . | . . . . . . . . . . . Hacks Repelled . | . . . . . . . . . . . Allies | -11 -10 -10 -9 -6 -6 -6 -5 -5 -4 -3 -------- Run | Yrd Mat Sub Scr Fac Was Fac Fac DSF Fac Res Total Allies 30 | . . . . . 3 26 . 1 . . Largest Group 5 | . . . . . 3 5 . 1 . . Highest-Rated Group 238 | . . . . . 120 238 . 64 . . Highest-Rated Ally 79 | . . . . . 40 79 . 64 . . Initial UFD Resources 24 | . . . . 24 24 24 15 15 19 21 Total Orders . | . . . . . . . . . . . Ally Attacks 231 | . . . . . 18 213 . . . . Total Damage 5119 | . . . . . 578 4541 . . . . Kills 37 | . . . . . 1 36 . . . . Allies Corrupted 1 | . . . . . . 1 . . . . Allies Melted . | . . . . . . . . . . . X0-1V1 Amusement Gains 125 | . 10 10 . . . 65 15 . 10 15 Average Entertainment 26 | . 10 9 . 2 2 22 45 45 50 37 Good Acts 27 | . . 2 . . 8 8 . 1 7 1 Bad Acts 29 | . . 1 . . 2 10 . 10 3 3 Intel | -11 -10 -10 -9 -6 -6 -6 -5 -5 -4 -3 ------- Run | Yrd Mat Sub Scr Fac Was Fac Fac DSF Fac Res Active Infowar (turns) 556 | . . . . . . 504 29 23 . . Sensors 78 | . . . . . . 26 29 23 . . Terrain 478 | . . . . . . 478 . . . . Robot Analysis Total . | . . . . . . . . . . . Derelict Logs Recovered 6 | . . 1 5 . . . . . . . Drone Launches . | . . . . . . . . . . . Drone Recoveries . | . . . . . . . . . . . Exploration | -11 -10 -10 -9 -6 -6 -6 -5 -5 -4 -3 ------------- Run | Yrd Mat Sub Scr Fac Was Fac Fac DSF Fac Res Turns Passed 9192 | 108 2318 909 2990 103 232 1859 34 163 307 169 Spaces Moved 5064 | 59 968 466 1436 47 91 1190 22 134 565 86 Core 689 | 7 . . . . . 2 . 95 565 20 Treads 1736 | 52 968 213 461 . . 42 . . . . Legs 1068 | . . 253 749 . . . . . . 66 Wheels 1571 | . . . 226 47 91 1146 22 39 . . Hover . | . . . . . . . . . . . Flight . | . . . . . . . . . . . Fastest Speed 50 | 50 160 160 175 190 175 83 95 50 50 50 Average Speed 157 | 146 204 176 205 190 182 116 95 77 50 111 Slowest Speed 1450 | 160 320 190 330 190 190 1450 95 195 50 170 Overloaded Moves . | . . . . . . . . . . . Propulsion Burnouts . | . . . . . . . . . . . Robots Hopped . | . . . . . . . . . . . Potential Cave-ins 22 | . . . . . 14 . . 3 . 5 Cave-ins Triggered 1 | . . . . . . . . 1 . . Exploration Rate (%) 44 | 5 95 35 82 2 68 35 . 97 22 5 Regions Visited 10 Branch Regions 2 Pre-discovered Areas 3 | . 1 1 1 . . . . . . . Known Exits Taken 2 | . . . . . . 1 1 . . . Unknown Exits Taken 5 | 1 1 1 1 . . . . . 1 . Scrap Searched 9 | . . 5 4 . . . . . . . Spaces Dug 23 | . . . . . 17 6 . . . . Terrain Destroyed 148 | . 79 39 . . 17 13 . . . . Melee 23 | . . . . . 17 6 . . . . Projectile . | . . . . . . . . . . . AOE 125 | . 79 39 . . . 7 . . . . Terrain Rammed . | . . . . . . . . . . . Walls Destroyed . | . . . . . . . . . . . Machines Disabled . | . . . . . . . . . . . Actions | -11 -10 -10 -9 -6 -6 -6 -5 -5 -4 -3 --------- Run | Yrd Mat Sub Scr Fac Was Fac Fac DSF Fac Res Total 5872 | 76 1160 529 1485 63 123 1504 33 180 589 130 Wait 175 | . 41 10 1 3 14 95 2 4 4 1 Move 5055 | 58 967 465 1435 47 90 1189 21 133 564 86 Hop . | . . . . . . . . . . . Pick Up 109 | 10 22 13 18 4 . 29 2 5 6 . Fast Attach 73 | . 7 . 5 . 1 44 . 4 4 8 Attach 33 | 6 . 1 1 5 . 12 5 1 1 1 Detach 3 | . . . . . . 2 . . 1 . Swap 30 | . 11 8 3 1 . 5 1 1 . . Drop 102 | . 18 12 22 2 1 34 1 4 5 3 Fire 129 | 2 72 20 . . . 1 . 13 . 21 Melee 112 | . . . . 1 17 93 1 . . . Ram 4 | . . . . . . . . . 4 . Kick 10 | . . . . . . . . . . 10 Crush 22 | . 22 . . . . . . . . . Escape Stasis 15 | . . . . . . . . 15 . . Rewire . | . . . . . . . . . . . Trap . | . . . . . . . . . . . Miscellaneous . | . . . . . . . . . . . Route ------- -11/Scrapyard -10/Materials (discovered 5 exits: [*Mat x3] / [*Min] / [*Sub]) -10/Subcaves (discovered 2 exits: [*Mat] / *Scr) -9/Scraptown (discovered 2 exits: *Fac x2) -6/Factory -6/Waste -6/Factory (discovered 2 exits: *Fac x2) -5/Factory -5/DSF -4/Factory (discovered 2 exits: *Res / Arm) -3/Research History --------- Turn | Location | Event 3 | -11/Scrapyard | Discovered new exit (range 16) 109 | -11/Scrapyard | Entered Materials 308 | -10/Materials | Build established: Mutant 581 | -10/Materials | Discovered new exit (range 11) 935 | -10/Materials | Discovered new exit (range 16) 1421 | -10/Materials | Discovered new exit (range 11) 1879 | -10/Materials | Discovered new exit (range 12) 2113 | -10/Materials | Discovered new exit (range 10) 2413 | -10/Materials | Prayed at D.C.S.S. Altar Unit 2427 | -10/Materials | Entered Subcaves 2428 | -10/Subcaves | Approached by a straggling Scientist 2472 | -10/Subcaves | Learned Materials terminal intel 2516 | -10/Subcaves | Discovered new exit (range 10) 2739 | -10/Subcaves | Core integrity fell below 50% 2747 | -10/Subcaves | Learned location of Zion (-7) 2747 | -10/Subcaves | Met a Zionite searching for "candidates" 2800 | -10/Subcaves | A swath of the cavern ceiling suddenly collapsed 3304 | -10/Subcaves | Heat dissipation permanently improved by X0-1V1 (+15; -75 max core) 3336 | -10/Subcaves | Entered Scraptown 3692 | -9/Scraptown | Visited UFD Registry 3692 | -9/Scraptown | Registered with UFD as "Fissiondisc" 3749 | -9/Scraptown | Visited Comm Corps 3783 | -9/Scraptown | Heard Great Nut preacher, LISTEN AND RECITE! 3922 | -9/Scraptown | Discovered new exit (range 9) 3973 | -9/Scraptown | Scanned Subdweller tech in exchange for log data 3979 | -9/Scraptown | Learned Factory terminal intel 3981 | -9/Scraptown | Learned Factory emergency access door positions 3986 | -9/Scraptown | Learned location of Extension (-6) 4064 | -9/Scraptown | Visited Fellowship of the Rings 4095 | -9/Scraptown | Visited Red Mages 5021 | -9/Scraptown | Visited Science Guys 5098 | -9/Scraptown | Visited Observation Area 5162 | -9/Scraptown | Visited Curators Association 5254 | -9/Scraptown | Visited Scrapoid Pod Storage 5268 | -9/Scraptown | Found Scrapoid Pod 5310 | -9/Scraptown | Visited Botcube Research 5327 | -9/Scraptown | Found Lrg. Botcube 5684 | -9/Scraptown | Visited Research Penetration Think Tank 5756 | -9/Scraptown | Visited Derelict Rescue Squad 5829 | -9/Scraptown | Visited Chapter 10 5875 | -9/Scraptown | Visited Supply Room 5963 | -9/Scraptown | Visited Scrap Suit Storage 5989 | -9/Scraptown | Found Scrap Suit 5995 | -9/Scraptown | Found Scrap Suit 6002 | -9/Scraptown | Found Scrap Suit 6090 | -9/Scraptown | Found Scrap Suit 6226 | -9/Scraptown | Met Optimus 6226 | -9/Scraptown | Accepted into 0bPrime 6321 | -9/Scraptown | Discovered new exit (range 3) 6326 | -9/Scraptown | Entered Factory 6326 | -6/Factory | Evolved 8 slots: Propulsion x4, Utility x4 6328 | -6/Factory | Loaded intel: 28 terminal locations 6429 | -6/Factory | Sucked down chute 6429 | -6/Factory | Entered Waste 6444 | -6/Waste | EMP discharged 6444 | -6/Waste | System corruption reached 10% 6460 | -6/Waste | Spotted C-40 Crusher 6483 | -6/Waste | Core integrity permanently improved by X0-1V1 (+200) 6504 | -6/Waste | Found Prototype Processor 6504 | -6/Waste | Identified Exp. Terrain Scan Processor 6512 | -6/Waste | Spotted C-40 Crusher 6521 | -6/Waste | Crushed by Compactor (1 part destroyed, 2 dropped) 6538 | -6/Waste | Identified exit to Factory 6538 | -6/Waste | X0-1V1 revealed exit location to -6/Factory 6544 | -6/Waste | EMP discharged 6570 | -6/Waste | Spotted C-40 Crusher 6602 | -6/Waste | X0-1V1 sent allied X-62 Marksman (x3) 6644 | -6/Waste | EMP discharged 6661 | -6/Waste | Entered Factory 6879 | -6/Factory | Scrapoid reinforcements arrived 6879 | -6/Factory | Garrison activated, responded to threat 7031 | -6/Factory | X0-1V1 sent you into danger 7074 | -6/Factory | Lost 5 parts (4n1w) 7184 | -6/Factory | Discovered new exit (range 15) 7236 | -6/Factory | Lost 3 allies 7251 | -6/Factory | Found Scrap Suit 7289 | -6/Factory | Melee accuracy permanently improved by X0-1V1 (+5%; -50 max core) 7393 | -6/Factory | Scrapoid Pod released 06F10-D (x5) 7411 | -6/Factory | X0-1V1 vaporized surrounding terrain (radius 16) 7418 | -6/Factory | Found Scrap Suit 7462 | -6/Factory | Lost 4 allies 7541 | -6/Factory | X0-1V1 sent allied Knight (x1) 7584 | -6/Factory | Lost 9 parts (1p4n3u1w) 7759 | -6/Factory | Scrapoids reinforcements arrived? 7882 | -6/Factory | Central database locked down 7992 | -6/Factory | Found Scrap Suit 7999 | -6/Factory | Lost 3 allies 8069 | -6/Factory | Core integrity restored by X0-1V1 (+148) 8127 | -6/Factory | Build established: Scavenger-Gladiator 8153 | -6/Factory | Lost 5 parts (1p3n1u) 8195 | -6/Factory | Scrapoids reinforcements arrived? 8224 | -6/Factory | Cargo convoy interrupted 8234 | -6/Factory | Spotted B-75 Beast 8241 | -6/Factory | X0-1V1 upgraded hostiles (x1) 8242 | -6/Factory | Spotted B-86 Titan 8245 | -6/Factory | Allies destroyed B-86 Titan 8256 | -6/Factory | Found Hvy. Reflective Plating 8332 | -6/Factory | X0-1V1 enhanced Transport squad support 8367 | -6/Factory | Found Scrap Suit 8385 | -6/Factory | Lost 5 allies 8406 | -6/Factory | Scrapoids reinforcements arrived? 8411 | -6/Factory | First assault squad dispatched 8479 | -6/Factory | Core integrity fell below 50% 8500 | -6/Factory | System corruption reached 30% 8506 | -6/Factory | Found Scrap Suit 8512 | -6/Factory | Discovered new exit (range 4) 8518 | -6/Factory | Identified exit to Factory 8520 | -6/Factory | Entered another Factory area 8520 | -5/Factory | Evolved 2 slots: Weapon x2 8544 | -5/Factory | Lost 5 allies 8554 | -5/Factory | Identified exit to DSF 8554 | -5/Factory | Entered DSF 8562 | -5/DSF | X0-1V1 vaporized surrounding terrain (radius 23) 8582 | -5/DSF | Additional patrols routed to DSF 8585 | -5/DSF | Crushed by falling debris 8587 | -5/DSF | X0-1V1 upgraded hostiles (x1) 8635 | -5/DSF | Lost 11 parts (6n3u2w) 8649 | -5/DSF | Released all parts (6) 8653 | -5/DSF | Lrg. Botcube activated 8657 | -5/DSF | Sterilization system engaged 8669 | -5/DSF | X0-1V1 caused items to flee you 8677 | -5/DSF | Ambient heat levels rising (+10) 8679 | -5/DSF | Lost 3 parts (1p1n1w) 8688 | -5/DSF | Discovered new exit (range 14) 8692 | -5/DSF | Ambient heat levels rising (+10) 8707 | -5/DSF | Ambient heat levels rising (+10) 8708 | -5/DSF | Core integrity fell below 50% 8717 | -5/DSF | Entered Factory 8717 | -4/Factory | Evolved 2 slots: Power x1, Utility x1 8718 | -4/Factory | Identified exit to Armory 8742 | -4/Factory | X0-1V1 enhanced Transport squad support 8930 | -4/Factory | Build established: Mutant 9017 | -4/Factory | Discovered new exit (range 13) 9024 | -4/Factory | Entered Research 9024 | -3/Research | Evolved 2 slots: Power x1, Weapon x1 9028 | -3/Research | X0-1V1 vaporized surrounding terrain (radius 15) 9043 | -3/Research | Found Hvy. Reflective Plating 9046 | -3/Research | Found Hvy. Reflective Plating 9049 | -3/Research | Found Hvy. Reflective Plating 9193 | -3/Research | Self-destructed Last Messages --------------- 09130_ K-01 Serf collects debris. 09142_ Terminal disabled. 09144_ K-01 Serf collects debris. 09155_ System corrupted: Matter fused (-6). 09157_ X0-1V1: "Your inner air conditioner seems to have fallen into disrepair." (-35 heat dissipation) 09162_ Heat dissipation returns to normal. 09163_ P-80 Master misfires. 09171_ Kicked P-80 Master. 09178_ Kicked P-80 Master out of the way. 09180_ Kicked P-80 Master. 09181_ System corrupted: Matter fused (-5). 09181_ Acquired 5 matter. 09181_ Kicked P-80 Master. 09183_ Hvy. Reflective Plating destroyed. 09183_ Kicked P-80 Master. 09184_ Kicked P-80 Master out of the way. 09186_ P-80 Master misfires. 09188_ Kicked P-80 Master. Map ----- +----------------------------------------------------+ | ????????????????????????????????????????????# + | | ?????????????????????????????????????????? " " | | ???????????????????????????????????????? ! " " | | ?????????????????????????????????????##"""""" " | | ?????????????????????????????????????# | | ?????????????????????????????????????# | | ?????????????????????????????????????# | | ???????????????????????????????????""" | | ????????????????????????????????? " """"""+" | | ???????????????????????????????? " " " | | ??????????????????????????????? " " " | | ??????????????????????????????" + " " | | ??????????????????????????????" " " " | | ?????????????????????????????? " " " | | ?????????????????????????????? " " " | | ??????????????????????????????? " " " | | ????????????????????????????#######""" " " | | ????????????????????????????#== " " " ! | | ????????????????????????????#= " # ""! | | ????????????????????????????# " # | | ???????????????????????????# ! " # | | ????????????????????????????# "" " # | | ??????????????????###########???S"" # # | | ??????????????????# #???"" ?# # | | ??????????????????# [ #?? ??# # | | ??????????????????# p@ #? ????# # | | ??????????????????# %% #?#??????# ## | | ??????????????????# % #????????# ####### | | ??????????????????# " %%" #????????# #?????## | | ??????????????????# "" ####?????# ^^ #??????? | | ??????????????????# """ #T"#?????# ^ #??????? | | ??????????????????#########g#="####### #??????? | | ?????????????? [g* #??????? | | ?????????????? =[ #??????? | | ?????????????? #??????? | | ??????????????? #??????? | | ???????????????###################+########??????? | | ???????????????????????????????? ????????????? | | ??????????????????????????????= ??????????? | | ????????????????????????????]!= ????????? | | ???????????????????????????# #???????? | | ???????????????????????????# #???????? | | ???????????????????????????# * ! #???????? | | ???????????????????????????###############???????? | | ?????????????????????????????????????????????????? | | ?????????????????????????????????????????????????? | | ?????????????????????????????????????????????????? | | ?????????????????????????????????????????????????? | | ?????????????????????????????????????????????????? | | ?????????????????????????????????????????????????? | +----------------------------------------------------+ Best States ------------- Heat Dissipation 118 Energy Generation 19 Energy Capacity 1400 Matter Stores 900 Matter Capacity 900 Sight Range 19 Robot Scan Range 15 Terrain Scan Range 20 Terrain Scan Density 110 Armor Coverage 1800 Resistance: TH 25 Evasion (%) 70 Melee Accuracy 8 Target Analysis 5 Recoil Reduction 2 Offensive Hacking 10 Defensive Hacking 28 Item Schematics ----------------- None Robot Schematics ------------------ None Fabricated ------------ Nothing Repaired ---------- Nothing Studied --------- Wheel | -6/Factory | Hacked Com. Wheel | -6/Factory | Hacked Alien Tech Used ----------------- None Achievements -------------- None Challenges ------------ None Game ------ Seed GravjetPersonalJets Manual? 0 Play Time 00:56:45 Cumulative 655.9 hours Start 2026.09.21 @ 16:36:10 End 2026.09.21 @ 17:54:19 Sessions 3 Manual Loads 0 Difficulty Rogue Special Mode None Game No. 520 Rogue 520 Adventurer 0 Explorer 0 Win Type - Total 24 Types 14/0/5/1/0/0/0/2/0/2 Lore% 71 Gallery% 75 Achievement% 73 Wizard Run 0 Options --------- Layout 1 ASCII 0 Keyboard 0 Movement Mouse Keybinds 0 Fullscreen 2 Font 24/Cog Map View 50x35 Zoom Use 38% Tactical HUD 1 Map Filters NONE Filters NONE Steam 1 RUN: e818eca2-4192-4984-b66f-11104e022808